Cogmind - Beta 9.6 @@@ ROGUE MODE // 2020.08.19 @ 19:49:19 Player: muxecoid Result: Destroyed by Enhanced Grunt with Neutron Cannon Performance ------------- Evolutions (3) 1500 Regions Visited (11) 2200 Robots Destroyed (69) 345 Value Destroyed (2633) 2633 Prototype IDs (216) 4320 Alien Tech Used (0) 0 Bonus (3420) 3420 TOTAL SCORE: 14418 Bonus ------- Follower Combat Kills 159 Met Data Miner 300 Used Data Conduit 3000 Friendly Fire -39 Cogmind --------- Core Integrity 0/700 Matter 253/300 Energy 377/400 System Corruption 27% Temperature Cool (123) Movement Walking (270) Ox5 Location -7/Data Miner Parts ------- > --- POWER (1) -------- (None) > --- PROPULSION (2) --- Improved Carbon-fiber Leg > --- UTILITY (8) ------ Large Storage Unit High-capacity Storage Unit High-capacity Storage Unit Compact Battery Core Analyzer Armor Integrity Analyzer Energy Filter Improved Utility Shielding > --- WEAPON (2) ------- EM Pulse Cannon > --- INVENTORY (26) --- Light Angular Momentum Engine Light Angular Momentum Engine Heavy Treads Carbon-fiber Leg Carbon-fiber Leg Medium Storage Unit Large Storage Unit High-capacity Storage Unit Makeshift Salvage Targeting Computer Makeshift Salvage Targeting Computer Damper Plating Shock Rifle Battle Rifle Remote Datajack Makeshift Axe Peak State ------------ > --- POWER ------------ Neutrino Core > --- PROPULSION ------- Improved Carbon-fiber Leg Improved Carbon-fiber Leg > --- UTILITY ---------- Large Storage Unit High-capacity Storage Unit High-capacity Storage Unit Core Analyzer Armor Integrity Analyzer Improved Utility Shielding Improved Medium Armor Plating Reflective Plating > --- WEAPON ----------- Heavy Laser Advanced Beam Cannon > --- INVENTORY -------- Light Angular Momentum Engine Heavy Treads Carbon-fiber Leg Carbon-fiber Leg Medium Storage Unit Large Storage Unit High-capacity Storage Unit Compact Battery Makeshift Salvage Targeting Computer Makeshift Salvage Targeting Computer Energy Filter Damper Plating EM Pulse Cannon EM Pulse Cannon Proton Missile Launcher Missile Launcher Remote Datajack Makeshift Axe Explosive Trap Explosive Trap Explosive Trap [Rating: 48] Favorites ----------- Power Ion Engine Engine Ion Engine Power Core Light Nuclear Core Propulsion Improved Carbon-fiber Leg Treads Light Treads Leg Improved Carbon-fiber Leg Wheel Compact Wheel Utility High-capacity Storage Unit Device Cryofiber Web Storage High-capacity Storage Unit Processor Armor Integrity Analyzer Hackware Hacking Suite Protection Improved Medium Armor Plating Weapon EM Pulse Gun Energy Gun EM Pulse Gun Energy Cannon Advanced Beam Cannon Ballistic Gun Heavy Assault Rifle Launcher Missile Launcher Special Weapon Remote Datajack Slashing Weapon Katana Build | -11 -10 -10 -10 -9 -8 -7 -7 -7 -7 -7 -7 ------- Run | Scr Mat Min Exi Min Mat Fac Was Fac Low Low Dat Slots Evolved 6 | . . . . . 4 2 . . . . . Power . | . . . . . . . . . . . . Propulsion . | . . . . . . . . . . . . Utility 6 | . . . . . 4 2 . . . . . Weapon . | . . . . . . . . . . . . Parts Attached 102 | 6 3 . 1 2 27 15 5 18 5 15 5 Power 10 | 1 1 . . 1 3 . 1 2 . 1 . Engine 7 | 1 1 . . 1 2 . . 2 . . . Core 3 | . . . . . 1 . 1 . . 1 . Reactor . | . . . . . . . . . . . . Propulsion 14 | 2 . . 1 . 4 3 . 4 . . . Treads 3 | . . . . . 3 . . . . . . Leg 2 | . . . . . . . . 2 . . . Wheel 9 | 2 . . 1 . 1 3 . 2 . . . Hover . | . . . . . . . . . . . . Flight . | . . . . . . . . . . . . Utility 28 | 1 2 . . . 7 5 2 2 4 3 2 Device 5 | . . . . . 1 2 . 1 . . 1 Storage 8 | 1 2 . . . 2 . . . 1 1 1 Processor 2 | . . . . . . . 2 . . . . Hackware 1 | . . . . . 1 . . . . . . Protection 12 | . . . . . 3 3 . 1 3 2 . Artifact . | . . . . . . . . . . . . Weapon 50 | 2 . . . 1 13 7 2 10 1 11 3 Energy Gun 15 | 2 . . . 1 5 2 . 2 . 3 . Energy Cannon 8 | . . . . . 3 . . 1 . 2 2 Ballistic Gun 13 | . . . . . 4 3 2 4 . . . Ballistic Cannon . | . . . . . . . . . . . . Launcher 6 | . . . . . . . . 1 1 3 1 Special Weapon 1 | . . . . . . 1 . . . . . Impact Weapon . | . . . . . . . . . . . . Slashing Weapon 7 | . . . . . 1 1 . 2 . 3 . Piercing Weapon . | . . . . . . . . . . . . Special Melee Weapon . | . . . . . . . . . . . . Unidentified Prototypes 3 | . . . . . 2 1 . . . . . Parts Lost 43 | . 1 1 . . 14 1 1 11 2 7 5 Power 8 | . 1 . . . 3 . . 2 . 1 1 Propulsion 8 | . . 1 . . 3 . . 3 . . 1 Utility 10 | . . . . . 3 1 . 2 1 2 1 Weapon 17 | . . . . . 5 . 1 4 1 4 2 Highest Loss Streak 6 | . 1 1 . . 6 1 1 6 2 4 5 Average Slot Usage (%) 95 | . 96 95 100 100 92 98 88 85 99 98 92 Engine 6 | . 13 14 14 14 7 . . 1 7 5 . Core 1 | . . . . . 1 7 6 . . 1 7 Treads 1 | . . . . . 13 3 . . . . . Leg 4 | . . . . . . . . . 15 15 15 Wheel 11 | . 28 24 28 28 3 10 7 12 . . . Device 5 | . . . . . 6 14 15 11 7 . . Storage 25 | . 25 28 28 28 28 23 23 23 23 26 30 Processor 7 | . . . . . . . 15 15 15 15 15 Hackware 2 | . . . . . 5 7 7 6 . . . Protection 7 | . . . . . 6 15 . 1 14 17 14 Energy Gun 9 | . 28 28 28 28 3 2 . . . 1 . Energy Cannon 2 | . . . . . 6 . . . 6 3 . Ballistic Gun 3 | . . . . . 6 9 12 2 6 . . Launcher 1 | . . . . . . . . . . 5 . Slashing Weapon 1 | . . . . . . . . 5 . 2 6 Naked Turns . | . . . . . . . . . . . . Heaviest Build 117 | 12 72 72 72 78 116 103 94 94 103 117 114 Greatest Support 40 | 26 26 26 26 26 40 40 28 36 36 36 36 Greatest Overweight (x) 8 | . 2 4 2 2 6 8 3 7 2 3 3 Average Overweight (x) 2 | . 1 2 2 2 2 3 2 3 2 2 2 Largest Inventory Capacity 30 | 6 20 20 20 20 30 26 26 26 26 26 26 Average Capacity 23 | 5 17 20 20 20 26 26 26 26 26 26 26 Most Carried 26 | 4 18 18 17 20 26 26 26 26 20 26 25 Average Carried 20 | 2 11 18 16 19 15 25 25 24 18 23 22 Final Capacity 26 | 6 20 20 20 20 26 26 26 26 26 26 26 Final Carried 26 | 4 18 18 17 20 26 26 25 20 20 24 18 Class Distribution -------------------- 97% | Hauler-Mutant Dominant Class ---------------- Hauler-Mutant | -10/Materials Hauler-Mutant | -10/Mines Hauler-Mutant | -10/Exiles Hauler-Mutant | -9/Mines Hauler-Mutant | -8/Materials Hauler-Mutant | -7/Factory Hauler-Mutant | -7/Waste Hauler-Mutant | -7/Factory Hauler-Mutant | -7/Lower Caves Hauler-Mutant | -7/Lower Caves Hauler-Mutant | -7/Data Miner Resources | -11 -10 -10 -10 -9 -8 -7 -7 -7 -7 -7 -7 ----------- Run | Scr Mat Min Exi Min Mat Fac Was Fac Low Low Dat Matter Collected 1931 | 213 277 . . 30 325 214 219 213 71 342 27 Remotely . | . . . . . . . . . . . . Salvage Created 3397 | . 492 20 . . 887 214 557 581 22 499 125 Parts 163 | . 32 . . . 53 10 12 25 2 22 7 Haulers Intercepted 2 | . 1 . . . 1 . . . . . . Recyclers Shooed 2 | . 1 . . . . . . 1 . . . Parts Field Recycled . | . . . . . . . . . . . . Retrieved Matter . | . . . . . . . . . . . . Parts Self-Destructed 12 | . . . . . . . . . 1 11 . Prevented 5 | . . . . . . . . . . 5 . Kills | -11 -10 -10 -10 -9 -8 -7 -7 -7 -7 -7 -7 ------- Run | Scr Mat Min Exi Min Mat Fac Was Fac Low Low Dat Combat Hostiles Destroyed 56 | . 8 1 . . 18 3 2 7 3 13 1 Melee 7 | . . . . . 1 . . 5 . 1 . Guns 26 | . 8 1 . . 10 3 2 1 . 1 . Cannons 6 | . . . . . 5 . . . . 1 . AOE 14 | . . . . . 2 . . 1 3 8 . Classes Destroyed 12 | . 5 1 . . 2 . 1 3 . . . Worker 1 | . . . . . . . . 1 . . . Builder 3 | . 1 . . . 1 . . 1 . . . Hauler 2 | . 1 . . . 1 . . . . . . Recycler 2 | . . . . . . . . 2 . . . Operator 2 | . 2 . . . . . . . . . . Watcher 2 | . 1 . . . 1 . . . . . . Swarmer 13 | . . 1 . . 3 . . . 3 6 . Grunt 26 | . 8 . . . 11 . . 3 . 4 . Sentry 10 | . . . . . 3 3 . 3 . 1 . Hunter 1 | . . . . . 1 . . . . . . Programmer 3 | . . . . . . . . 1 . 2 . Compactor 2 | . . . . . . . 2 . . . . Enhanced Grunt 1 | . . . . . . . . . . . 1 Best Kill Streak 8 | . 3 1 . . 8 1 1 3 3 4 1 Combat Bots Only 8 | . 2 1 . . 8 1 1 2 3 4 1 Max Kills in Single Turn 3 | . 1 1 . . 2 1 1 1 1 3 1 Gunslinging . | . . . . . . . . . . . . Exploded 3 | . . . . . 2 . . 1 1 3 . Melee 1 | . . . . . 1 . . 1 . 1 . Uniques/NPCs Destroyed 1 | . . . . . . . . . . . 1 Data Miner (-7/Data Miner) Combat | -11 -10 -10 -10 -9 -8 -7 -7 -7 -7 -7 -7 -------- Run | Scr Mat Min Exi Min Mat Fac Was Fac Low Low Dat Damage Taken 5845 | . 209 28 . . 1596 641 47 1603 353 840 528 Core 1026 | . 12 10 . . 299 60 . 311 24 122 188 Absorbed by Shields . | . . . . . . . . . . . . Core Remaining (%) 78 | 100 . . . 91 45 . . . . . . Volleys Fired 174 | . 27 2 . 3 51 16 20 22 5 23 5 Largest 2 | . 2 2 . 2 2 2 2 2 1 2 2 Hottest 150 | . 80 80 . 115 150 90 53 91 36 137 102 Shots Fired 308 | . 52 4 . 5 96 31 39 38 4 31 8 Gun 233 | . 52 4 . 5 63 30 39 32 . 8 . Cannon 47 | . . . . . 33 . . 3 . 7 4 Launcher 27 | . . . . . . . . 3 4 16 4 Special 1 | . . . . . . 1 . . . . . Kinetic 120 | . . . . . 35 20 39 26 . . . Thermal 100 | . 25 2 . 2 53 . . 3 . 15 . Explosive 9 | . . . . . . . . . 4 5 . Electromagnetic 78 | . 27 2 . 3 8 10 . 9 . 11 8 Robot Hit Streak 23 | . 10 1 . 3 21 23 8 7 . 8 6 Robot Miss Streak 5 | . 3 2 . 1 2 1 5 2 3 4 1 Penetration Max . | . . . . . . . . . . . . Secondary Targets 4 | . 2 . . . 1 . 1 . . . . Max Gunslinging Chain 1 | . 1 . . . 1 . 1 . . . . Shots Hit Robots 257 | . 32 1 . 3 80 29 34 50 . 20 8 Core Hits 137 | . 20 1 . . 35 11 23 17 5 15 10 Critical Hits 3 | . . . . . 1 1 . 1 . . . Critical Kills . | . . . . . . . . . . . . Critical Parts Destroyed 3 | . . . . . 1 1 . 1 . . . Melee Attacks 51 | . . . . . 7 2 . 37 . 4 1 Impact . | . . . . . . . . . . . . Slashing 51 | . . . . . 7 2 . 37 . 4 1 Piercing . | . . . . . . . . . . . . Sneak Attacks 4 | . . . . . . . . 3 . . 1 Combat Hostiles . | . . . . . . . . . . . . Follow-up Attacks . | . . . . . . . . . . . . Damage Inflicted 7042 | . 500 11 . 46 1798 401 935 1599 227 1037 488 Guns 3097 | . 456 11 . 46 735 401 935 398 . 115 . Cannons 731 | . . . . . 576 . . 20 . 72 63 Explosions 1882 | . 44 . . . 300 . . 176 227 816 319 Melee 1331 | . . . . . 186 . . 1005 . 34 106 Ramming 1 | . . . . . 1 . . . . . . Kinetic 1881 | . . . . . 325 304 935 317 . . . Thermal 1433 | . 176 11 . 22 966 . . 71 . 187 . Explosive 1010 | . . . . . 224 . . . 227 375 184 Electromagnetic 1386 | . 324 . . 24 96 97 . 206 . 441 198 Impact . | . . . . . . . . . . . . Slashing 1331 | . . . . . 186 . . 1005 . 34 106 Piercing . | . . . . . . . . . . . . Highest Corruption 27 | . 2 2 2 2 . . 20 23 23 27 27 Average Corruption 15 | . 2 2 2 2 . . 12 20 23 23 27 Corruption Purged . | . . . . . . . . . . . . Effects 204 | . . 6 2 5 . . 17 58 26 74 16 Message Errors 38 | . . 3 . 5 . . 4 7 5 14 . Matter Fused 34 | . . . . . . . 5 11 4 13 1 Heat Flow Errors 12 | . . . 1 . . . . 2 2 6 1 Energy Discharges 17 | . . . 1 . . . 1 1 5 8 1 Data Loss (minor) 20 | . . 3 . . . . 1 5 4 5 2 Data Loss (major) 8 | . . . . . . . . 2 . 3 3 Misfires 4 | . . . . . . . . 2 . 2 . Alerts 5 | . . . . . . . . 2 1 . 2 Misdirections 24 | . . . . . . . 1 4 3 13 3 Targeting Errors 37 | . . . . . . . 4 21 1 8 3 Weapon Failures 5 | . . . . . . . 1 1 1 2 . Overload Shots . | . . . . . . . . . . . . Overflow Damage 159 | . . . . . 16 . . 128 . 15 . Projectiles . | . . . . . . . . . . . . Explosions 40 | . . . . . 13 . . 12 . 15 . Melee 119 | . . . . . 3 . . 116 . . . Knockbacks . | . . . . . . . . . . . . Impact . | . . . . . . . . . . . . Kinetic . | . . . . . . . . . . . . Secondary . | . . . . . . . . . . . . Self-Inflicted Damage 161 | . . . . . 124 . . . . 22 15 Shots 4 | . . . . . 2 . . . . 1 1 Rammed 1 | . . . . . 1 . . . . . . Targets Rammed 1 | . . . . . 1 . . . . . . Kicked . | . . . . . . . . . . . . Crushed . | . . . . . . . . . . . . Highest Temperature 606 | . 174 18 139 108 606 . . 251 94 439 247 Average Temperature 109 | . 51 12 79 56 151 . . 66 51 114 100 Received Heat Transfer 1761 | . 117 . . . 648 198 . 540 24 168 66 Effects 15 | . . . . . 13 . . . . 2 . Shutdowns 4 | . . . . . 3 . . . . 1 . Energy Bleed 4 | . . . . . 3 . . . . 1 . Short Circuit 2 | . . . . . 2 . . . . . . Damage (major) 5 | . . . . . 5 . . . . . . Siege Activations . | . . . . . . . . . . . . Robots Corrupted 3 | . . . . . . . . . . 2 1 Combat Hostiles 3 | . . . . . . . . . . 2 1 Parts Fried 7 | . 1 . . . . 1 . . . 4 1 Impact Corruptions . | . . . . . . . . . . . . Robots Melted . | . . . . . . . . . . . . Combat Hostiles . | . . . . . . . . . . . . Parts Melted 2 | . . . . . 2 . . . . . . Heat Transferred 2288 | . 350 25 . 37 1493 . . 87 . 296 . Parts Sabotaged . | . . . . . . . . . . . . Parts Stolen . | . . . . . . . . . . . . Parts Stripped . | . . . . . . . . . . . . Power Chain Reactions 2 | . 1 . . . 1 . . . . . . Missiles Intercepted . | . . . . . . . . . . . . Alert | -11 -10 -10 -10 -9 -8 -7 -7 -7 -7 -7 -7 ------- Run | Scr Mat Min Exi Min Mat Fac Was Fac Low Low Dat Peak Influence 344 | . 321 134 . 96 344 179 31 192 . . . Average Influence 105 | . 134 30 . 9 226 107 14 139 . . . Maximum Alert Level 1 | . 1 . . . 1 . . . . . . Low Security (%) 88 | 100 77 100 . 100 47 100 100 100 . . . Level 1 11 | . 22 . . . 52 . . . . . . Level 2 . | . . . . . . . . . . . . Level 3 . | . . . . . . . . . . . . Level 4 . | . . . . . . . . . . . . Level 5 . | . . . . . . . . . . . . High Security . | . . . . . . . . . . . . Max Security . | . . . . . . . . . . . . Squads Dispatched 8 | . 3 . . . 1 . . 4 . . . Investigation 2 | . 1 . . . 1 . . . . . . Extermination 2 | . . . . . . . . 2 . . . Reinforcement 3 | . 2 . . . . . . 1 . . . Assault 1 | . . . . . . . . 1 . . . Garrison . | . . . . . . . . . . . . Intercept . | . . . . . . . . . . . . Construction Impeded . | . . . . . . . . . . . . Haulers Reinforced . | . . . . . . . . . . . . Stealth | -11 -10 -10 -10 -9 -8 -7 -7 -7 -7 -7 -7 --------- Run | Scr Mat Min Exi Min Mat Fac Was Fac Low Low Dat Distress Signals 3 | . . . . . 2 . . 1 . . . Communications Jammed . | . . . . . . . . . . . . Distress Signals . | . . . . . . . . . . . . Times Spotted 101 | . 15 5 . 4 26 5 6 19 4 13 4 Peak Tracking Total 7 | . 2 3 . 2 7 2 4 5 3 4 4 Tactical Retreats 6 | . . . . . . . . 6 . . . Traps | -11 -10 -10 -10 -9 -8 -7 -7 -7 -7 -7 -7 ------- Run | Scr Mat Min Exi Min Mat Fac Was Fac Low Low Dat Traps Triggered 4 | . 2 . . . . 1 . . . . 1 Indirectly 1 | . . . . . . . . . . . 1 Trap Hack Attempts . | . . . . . . . . . . . . Triggered . | . . . . . . . . . . . . Disarmed . | . . . . . . . . . . . . Reprogrammed . | . . . . . . . . . . . . Reused 1 | . . . . . . . . . . . 1 Traps Extracted . | . . . . . . . . . . . . Installed 3 | . . . . . . . . . . . 3 Triggered 1 | . . . . . . . . 1 . . . Machines | -11 -10 -10 -10 -9 -8 -7 -7 -7 -7 -7 -7 ---------- Run | Scr Mat Min Exi Min Mat Fac Was Fac Low Low Dat Machines Disabled 7 | . 1 . . 1 3 . . 2 . . . Max in Single Turn 1 | . 1 . . . 1 . . 1 . . . Garrison Access 1 | . . . . . . . . 1 . . . Machines Sabotaged . | . . . . . . . . . . . . Garrisons Compromised . | . . . . . . . . . . . . Overloaded Fab Kills . | . . . . . . . . . . . . Fab Network Shutdowns . | . . . . . . . . . . . . Hacking | -11 -10 -10 -10 -9 -8 -7 -7 -7 -7 -7 -7 --------- Run | Scr Mat Min Exi Min Mat Fac Was Fac Low Low Dat Machines Accessed 21 | . 4 . 1 . 4 5 . 2 . 1 4 Terminals 14 | . 4 . . . 4 5 . 1 . . . Fabricators 1 | . . . . . . . . 1 . . . Repair Stations . | . . . . . . . . . . . . Recycling Units . | . . . . . . . . . . . . Scanalyzers . | . . . . . . . . . . . . Garrison Access . | . . . . . . . . . . . . Total Hacks 75 | . 9 . 4 . 13 14 . 4 . 1 30 Successful 60 | . 7 . 4 . 7 10 . 1 . 1 30 Failed 14 | . 2 . . . 5 4 . 3 . . . Catastrophic 1 | . . . . . . 1 . . . . . Database Lockouts 1 | . . . . . 1 . . . . . . Manual 30 | . 9 . . . 11 9 . 1 . . . Terminals 38 | . 9 . . . 13 14 . 2 . . . Fabricators 2 | . . . . . . . . 2 . . . Repair Stations . | . . . . . . . . . . . . Recycling Units . | . . . . . . . . . . . . Scanalyzers . | . . . . . . . . . . . . Garrison Access . | . . . . . . . . . . . . Terminal Hacks 49 | . 6 . 4 . 4 4 . . . 1 30 Record 15 | . . . 4 . . . . . . . 11 Part Schematic 9 | . . . . . 1 . . . . . 8 Robot Schematic 8 | . . . . . . . . . . . 8 Robot Analysis 4 | . 3 . . . 1 . . . . . . Prototype ID Bank 4 | . 1 . . . . . . . . . 3 Open Door 1 | . . . . . . . . . . 1 . Level Access Points 1 | . . . . . 1 . . . . . . Branch Access Points 1 | . 1 . . . . . . . . . . Emergency Access Points 1 | . . . . . . 1 . . . . . Terminal Index 1 | . . . . . . 1 . . . . . Unreport Threat 2 | . 1 . . . . 1 . . . . . Zone Layout 2 | . . . . . 1 1 . . . . . Fabricator Hacks . | . . . . . . . . . . . . Repair Station Hacks . | . . . . . . . . . . . . Recycling Unit Hacks . | . . . . . . . . . . . . Scanalyzer . | . . . . . . . . . . . . Garrison Access Hacks . | . . . . . . . . . . . . Unauthorized Hacks 11 | . 1 . . . 3 6 . 1 . . . Terminals 11 | . 1 . . . 3 6 . 1 . . . Track 3 | . . . . . 1 2 . . . . . Assimilate 2 | . . . . . . 1 . 1 . . . Botnet 4 | . 1 . . . 1 2 . . . . . Operators 2 | . . . . . 1 1 . . . . . Fabricators . | . . . . . . . . . . . . Repair Stations . | . . . . . . . . . . . . Recycling Units . | . . . . . . . . . . . . Scanalyzers . | . . . . . . . . . . . . Garrison Access . | . . . . . . . . . . . . Data Cores Recovered . | . . . . . . . . . . . . Used . | . . . . . . . . . . . . Hacking Detections 11 | . 3 . . . 2 4 . 2 . . . Full Trace Events . | . . . . . . . . . . . . Feedback Events . | . . . . . . . . . . . . Feedback Blocked . | . . . . . . . . . . . . Robot Schematics Acquired 8 | . . . . . . . . . . . 8 Robots Built . | . . . . . . . . . . . . Matter . | . . . . . . . . . . . . Time . | . . . . . . . . . . . . Total Robot Build Rating . | . . . . . . . . . . . . Part Schematics Acquired 9 | . . . . . 1 . . . . . 8 Parts Built . | . . . . . . . . . . . . Matter . | . . . . . . . . . . . . Time . | . . . . . . . . . . . . Total Part Build Rating . | . . . . . . . . . . . . Parts Repaired . | . . . . . . . . . . . . Time . | . . . . . . . . . . . . Parts Recycled . | . . . . . . . . . . . . Recycled Matter . | . . . . . . . . . . . . Retrieved Matter . | . . . . . . . . . . . . Retrieved Components . | . . . . . . . . . . . . Parts Scanalyzed . | . . . . . . . . . . . . Part Schematics Acquired . | . . . . . . . . . . . . Parts Damaged . | . . . . . . . . . . . . Bothacking | -11 -10 -10 -10 -9 -8 -7 -7 -7 -7 -7 -7 ------------ Run | Scr Mat Min Exi Min Mat Fac Was Fac Low Low Dat Used RIF Installer . | . . . . . . . . . . . . Robots Hacked 1 | . . . . . . 1 . . . . . Non-combat 1 | . . . . . . 1 . . . . . Combat . | . . . . . . . . . . . . Robot Hacks Applied 1 | . . . . . . 1 . . . . . find_chute 1 | . . . . . . 1 . . . . . Relay Couplers Released 1 | . . . . . . . . 1 . . . Machine Destruction 1 | . . . . . . . . 1 . . . Robots Rewired . | . . . . . . . . . . . . Allies Hacked . | . . . . . . . . . . . . Hacks Repelled . | . . . . . . . . . . . . Allies | -11 -10 -10 -10 -9 -8 -7 -7 -7 -7 -7 -7 -------- Run | Scr Mat Min Exi Min Mat Fac Was Fac Low Low Dat Total Allies 6 | . . 4 . . . . 1 1 . . . Largest Group 4 | . . 4 4 3 3 . 1 1 . . . Highest-Rated Group 71 | . . 71 71 40 40 . 31 26 . . . Highest-Rated Ally 31 | . . 31 31 16 16 . 31 26 . . . Total Orders . | . . . . . . . . . . . . Ally Attacks 43 | . . 11 . 15 4 . 13 . . . . Total Damage 671 | . . 178 . 234 49 . 210 . . . . Kills 7 | . . 4 . 3 . . . . . . . Allies Corrupted . | . . . . . . . . . . . . Allies Melted . | . . . . . . . . . . . . Intel | -11 -10 -10 -10 -9 -8 -7 -7 -7 -7 -7 -7 ------- Run | Scr Mat Min Exi Min Mat Fac Was Fac Low Low Dat Robot Analysis Total 119 | . 3 . . . 1 . . . . . 115 Derelict Logs Recovered 5 | . . 3 . 1 . . . . . 1 . Drone Launches . | . . . . . . . . . . . . Drone Recoveries . | . . . . . . . . . . . . Exploration | -11 -10 -10 -10 -9 -8 -7 -7 -7 -7 -7 -7 ------------- Run | Scr Mat Min Exi Min Mat Fac Was Fac Low Low Dat Turns Passed 6152 | 45 515 748 222 399 700 624 304 738 527 1115 215 Spaces Moved 3541 | 38 377 556 194 328 243 349 188 331 282 552 103 Core 6 | 6 . . . . . . . . . . . Treads 255 | . . . . . 200 55 . . . . . Legs 948 | . . . . . . . . 11 282 552 103 Wheels 2332 | 32 377 556 194 328 43 294 188 320 . . . Hover . | . . . . . . . . . . . . Flight . | . . . . . . . . . . . . Fastest Speed 50 | 50 90 110 110 110 120 130 120 120 180 180 180 Average Speed 140 | 85 106 117 110 110 187 141 128 123 180 184 181 Slowest Speed 240 | 100 110 140 110 110 200 240 130 180 180 210 210 Overloaded Moves . | . . . . . . . . . . . . Propulsion Burnouts . | . . . . . . . . . . . . Robots Hopped . | . . . . . . . . . . . . Cave-ins Triggered . | . . . . . . . . . . . . Exploration Rate (%) 50 | 3 73 99 51 63 30 13 73 12 48 70 75 Regions Visited 11 Branch Regions 6 Pre-discovered Areas 31 | . . . 1 . . . . . . 1 29 Known Exits Taken 3 | . 1 . 1 . 1 . . . . . . Unknown Exits Taken 6 | 1 . 1 . 1 . . . 1 1 1 . Scrap Searched 7 | . . 1 . 2 . . . . 2 2 . Spaces Dug 4 | . . . . . . 2 . . . 2 . Terrain Destroyed 155 | . 5 . . . 47 2 . 18 32 43 8 Melee 4 | . . . . . . 2 . . . 2 . Projectile 9 | . . . . . 9 . . . . . . AOE 142 | . 5 . . . 38 . . 18 32 41 8 Actions | -11 -10 -10 -10 -9 -8 -7 -7 -7 -7 -7 -7 --------- Run | Scr Mat Min Exi Min Mat Fac Was Fac Low Low Dat Total 4348 | 47 438 649 203 363 381 455 219 566 295 611 121 Wait 354 | . 17 92 7 15 25 47 . 150 . 1 . Move 3531 | 37 376 555 193 327 242 349 187 330 281 551 103 Hop . | . . . . . . . . . . . . Pick Up 85 | 4 14 . 1 9 22 11 2 7 3 12 . Fast Attach 23 | 6 2 . . 1 5 4 . 3 . 2 . Attach 46 | . 1 . 1 . 16 2 1 11 3 7 4 Detach 7 | . 1 . . . 3 . . . . 2 1 Swap 33 | . . . . 1 6 9 4 4 2 6 1 Drop 40 | . . . 1 7 3 15 5 2 1 3 3 Fire 174 | . 27 2 . 3 51 16 20 22 5 23 5 Melee 51 | . . . . . 7 2 . 37 . 4 1 Ram 1 | . . . . . 1 . . . . . . Kick . | . . . . . . . . . . . . Crush . | . . . . . . . . . . . . Escape Stasis . | . . . . . . . . . . . . Rewire . | . . . . . . . . . . . . Trap 3 | . . . . . . . . . . . 3 Miscellaneous . | . . . . . . . . . . . . Route ------- -11/Scrapyard -10/Materials (discovered 4 exits: [*Mat x2] / *Min x2) -10/Mines (discovered 3 exits: [*Mat x2] / *Exi) -10/Exiles (discovered 2 exits: *Min x2) -9/Mines -8/Materials (discovered 3 exits: *Fac x3) -7/Factory (discovered 2 exits: [*Fac] / [*Low]) -7/Waste -7/Factory -7/Lower Caves (discovered 2 exits: *Low / [*Zio]) -7/Lower Caves (discovered 2 exits: [*Fac] / *Dat) -7/Data Miner (discovered 1 exit: [*Pro]) History --------- Turn | Location | Event 14 | -11/Scrapyard | Discovered new exit (range 16) 46 | -11/Scrapyard | Entered Materials 225 | -10/Materials | Discovered new exit (range 15) 292 | -10/Materials | Discovered new exit (range 14) 432 | -10/Materials | Build established: Hauler-Mutant 471 | -10/Materials | Identified exit to Mines 561 | -10/Materials | Entered Mines 832 | -10/Mines | Assisted by bots powering up and referring to "LRC-V3" 948 | -10/Mines | Learned Materials interactive machine intel 963 | -10/Mines | Learned 2 Materials zone layouts 972 | -10/Mines | Deemed a non-threat by the Exiles lab entrance 974 | -10/Mines | Discovered new exit (range 5) 1014 | -10/Mines | Discovered new exit (range 5) 1150 | -10/Mines | Discovered new exit (range 7) 1153 | -10/Mines | Received a Mining Laser from a helpful Derelict 1309 | -10/Mines | Entered Exiles 1309 | -10/Exiles | Accompanied by 4 allies 1310 | -10/Exiles | Identified exit to Mines 1338 | -10/Exiles | Met 8R-AWN 1356 | -10/Exiles | Met EX-HEX 1404 | -10/Exiles | Learned location of Zion (-6) 1420 | -10/Exiles | Met EX-DEC 1440 | -10/Exiles | Met EX-BIN 1531 | -10/Exiles | Entered Mines 1531 | -9/Mines | Accompanied by 3 allies 1632 | -9/Mines | Joined a pair of Derelicts in attacking an 0b10 outpost 1742 | -9/Mines | Learned Materials garrison access intel 1830 | -9/Mines | Found a hidden stash of uninstalled traps 1911 | -9/Mines | Discovered new exit (range 9) 1930 | -9/Mines | Entered Materials 1930 | -8/Materials | Accompanied by 3 allies 1930 | -8/Materials | Evolved 4 slots: Utility x4 1931 | -8/Materials | Identified exit to Factory 1932 | -8/Materials | Loaded intel: 18 interactive machine locations 1933 | -8/Materials | Loaded intel: 1 garrison access location 2079 | -8/Materials | Lost 6 parts (1p1n3u1w) 2144 | -8/Materials | Lost 3 parts (1p2n) 2147 | -8/Materials | Destroyed 8 combat bots 2453 | -8/Materials | Central database locked down 2471 | -8/Materials | Core integrity fell below 50% 2527 | -8/Materials | Lost 3 parts (1p2w) 2630 | -8/Materials | Entered Factory 2630 | -7/Factory | Evolved 2 slots: Utility x2 2657 | -7/Factory | Discovered new exit (range 14) 2907 | -7/Factory | Discovered new exit (range 8) 3254 | -7/Factory | Sucked down chute 3254 | -7/Factory | Entered Waste 3255 | -7/Waste | Met a frightened Derelict 3269 | -7/Waste | EMP discharged 3303 | -7/Waste | Spotted C-40 Crusher 3303 | -7/Waste | Spotted C-40 Crusher 3325 | -7/Waste | Spotted C-40 Crusher 3369 | -7/Waste | EMP discharged 3369 | -7/Waste | System corruption reached 10% 3411 | -7/Waste | Destroyed C-40 Crusher 3457 | -7/Waste | Destroyed C-40 Crusher 3469 | -7/Waste | EMP discharged 3477 | -7/Waste | Found Damper Plating 3482 | -7/Waste | Spotted C-40 Crusher 3482 | -7/Waste | Spotted C-40 Crusher 3486 | -7/Waste | Spotted C-40 Crusher 3501 | -7/Waste | Crushed by Compactor (1 part destroyed, 2 dropped) 3547 | -7/Waste | Discovered new exit (range 10) 3558 | -7/Waste | Entered Factory 3656 | -7/Factory | Lost 4 parts (1p1u2w) 4176 | -7/Factory | Discovered new exit (range 5) 4251 | -7/Factory | Core integrity fell below 50% 4296 | -7/Factory | Entered Lower Caves 4305 | -7/Lower Caves | Lost 6 parts (1p2n1u2w) 4329 | -7/Lower Caves | A Derelict revealed a hidden shortcut to a safe place 4343 | -7/Lower Caves | Encountered a Warlord checkpoint 4786 | -7/Lower Caves | Discovered new exit (range 15) 4814 | -7/Lower Caves | Spotted B-75 Beast 4823 | -7/Lower Caves | Entered another Lower Caves area 5081 | -7/Lower Caves | Attracted the attention of an 0b10 checkpoint 5240 | -7/Lower Caves | Discovered new exit (range 16) 5315 | -7/Lower Caves | Spotted B-75 Beast 5871 | -7/Lower Caves | Lost 4 parts (1u3w) 5934 | -7/Lower Caves | Discovered new exit (range 2) 5938 | -7/Lower Caves | Entered Data Miner 5940 | -7/Data Miner | Discovered new exit (range 6) 5974 | -7/Data Miner | Met Data Miner 6014 | -7/Data Miner | Learned location of Section 7 (-3) 6014 | -7/Data Miner | Acquired the access code to Warlord's prototype stash 6043 | -7/Data Miner | Received God Mode back door access code from Data Miner 6121 | -7/Data Miner | Destroyed Data Miner 6123 | -7/Data Miner | Interfaced with the Data Conduit 6150 | -7/Data Miner | Core integrity fell below 20% 6153 | -7/Data Miner | Destroyed by Enhanced Grunt with Neutron Cannon Last Messages --------------- 06123_ Acquired 27 matter. 06123_ Interfacing with system... Downloaded 115 analysis records. Downloaded 708 prototype IDs. Downloaded central machine database. Downloaded 28 destinations. Downloaded encryption format records. Connection remotely terminated. [Achievement: Unlimited Data] 06126_ System corrupted: Energy discharge (-141). 06141_ System corrupted: IFF burst signal emitted. 06141_ System corrupted: EM Pulse Cannon targeting data glitched. 06144_ System corrupted: Proton Missile Launcher targeting data glitched. 06145_ Reflective Plating destroyed. 06147_ EM Pulse Cannon destroyed. 06150_ Proton Missile Launcher destroyed. 06151_ Imp. Carbon-fiber Leg destroyed. 06151_ Neutrino Core destroyed. 06152_ Enhanced Grunt system terminally corrupted. 06152_ Exp. Thermal Shield fried. Map ----- +----------------------------------------------------+ | | | | | | | | | | | | | | | | | | | | | | | | | | | | | | | | | | | | | ??????????????????????????????????????? | | ??????????????????????????????????????? | | ??????????????????????????????????????? | | ??????????????????????????????????????? | | ?????????????????????????????????????## | | ??????###############??????????????### | | ?????"""""""" "######????????## | | ????""""""""" @ g ###### < | | ????""""""""" g | | ????"""""" g ! | | ???"""""" =%! | | ???"""""" ! != | | ???"""""""! | | ????"""""" """"""""""" | | ????""""""" """"############# | | ????""""""" """""###???????????? | | ?????"""""""" "#####?????????????? | | ??????######"## "#?????????????????? | | ???????????#"### "#?????????????????? | | ???????????#"### "#?????????????????? | | ????????????"?# "#?????????????????? | | ?????????????## "#?????????????????? | | ?????????????# "#?????????????????? | | ?????????????### "#?????????????????? | | ???????????????# "##????????????????? | | ??????????????## ""#????????????????? | | ???????????#?## ""#????????????????? | | ??????????##"#"X ""#????????????????? | | ??????????""""" "####?????????????? | | ??????????""""" X"""""?????????????? | | ??????????##"#"X "##"#?????????????? | | ???????????#?## X""""#?????????????? | +----------------------------------------------------+ Best States ------------- Heat Dissipation 48 Energy Generation 19 Energy Capacity 615 Matter Stores 300 Matter Capacity 300 Sight Range 16 Robot Scan Range 16 Terrain Scan Density 10 Base Temperature (-) 100 Armor Coverage 375 Resistance: TH 10 Utility Shielding 66 Evasion (%) 42 Core Analysis 6 Armor Integrity Analysis 33 Recoil Reduction 2 Energy Filtering 30 Offensive Hacking 10 Item Schematics ----------------- Armor Integrity Analyzer | -8/Materials | Hacked Combat Drone Bay | -7/Data Miner | Free Lgt. Regenerative Plating | -7/Data Miner | Free Exp. Flexi-carbon Leg | -7/Data Miner | Free Cmb. Gravmag System | -7/Data Miner | Free Exp. Sensor Array | -7/Data Miner | Free Exp. Targeting Computer | -7/Data Miner | Free Exp. ECM Suite | -7/Data Miner | Free Cloaking Device | -7/Data Miner | Free Robot Schematics ------------------ S-27 Virus | -7/Data Miner | Free G-50 Soldier | -7/Data Miner | Free G-67 Veteran | -7/Data Miner | Free X-72 Disruptor | -7/Data Miner | Free L-41 Fighter | -7/Data Miner | Free H-66 Slayer | -7/Data Miner | Free P-70 Sage | -7/Data Miner | Free I-36 Angel | -7/Data Miner | Free Fabricated ------------ Nothing Alien Tech Used ----------------- None Achievements -------------- Unlimited Data Challenges ------------ None Game ------ Seed HeavyQuantumBeam Manual? 0 Play Time 01:14:30 Cumulative 189.0 hours Start 2020.08.18 @ 20:10:51 End 2020.08.19 @ 19:49:19 Sessions 9 Manual Loads 0 Difficulty Rogue Special Mode None Game No. 106 Rogue 106 Adventurer 0 Explorer 0 Win Type - Total 8 Types 6/0/1/1/0/0/0 Lore% 61 Gallery% 80 Achievement% 62 Wizard Run 0 Options --------- ASCII 0 Keyboard 0 Movement Mouse Keybinds 0 Fullscreen 1 Font 24/Smallcaps Map View 76x50 Tactical HUD 1 Map Filters NONE Filters NONE Steam 1 RUN: 6098ec41-b5bb-40ad-a07e-de31c64fc998